[Event "Polish University-ch Teams 2024"]
[Site "Lublin"]
[Date "2024.02.24"]
[Round "3.23"]
[White "Poziomkowski, Szymon"]
[Black "Jedrzejko, Martyna"]
[Result "1-0"]
[ECO "C10"]
[WhiteElo "1848"]
[BlackElo "1711"]
[Annotator "NA"]
[PlyCount "63"]
[EventDate "2024.02.22"]
[EventType "team-tourn"]
[EventCountry "POL"]
[SourceTitle "playchess.com"]
[Source "ChessBase"]
[SourceQuality "1"]
[TimeControl "900+5"]

1. e4 {[%emt 0:00:03]} e6 {[%emt 0:00:01]} 2. d4 {[%emt 0:00:10]} d5 {[%emt 0:00:03]} 3. Nd2 {[%emt 0:00:21]} dxe4 {[%emt 0:00:02]} 4. Nxe4 {[%emt 0:00:04]} Bd7 {[%emt 0:00:02]} 5. Nf3 {[%emt 0:00:30]} Bc6 {[%emt 0:00:03]} 6. Bd3 {[%emt 0:00:19]} Nd7 {[%emt 0:00:07]} 7. O-O {[%emt 0:00:24]} Ngf6 {[%emt 0:00:03]} 8. Ng3 {[%emt 0:00:17]} Be7 {[%emt 0:00:43]} 9. Bf4 {[%emt 0:00:43]} Bxf3 {[%emt 0:00:43]} 10. Qxf3 {[%emt 0:00:12]} Nd5 {[%emt 0:00:25]} 11. Bd2 {[%emt 0:00:48]} N7f6 {[%emt 0:01:39]} 12. a3 {[%emt 0:01:39]} O-O {[%emt 0:00:19]} 13. Rfe1 {[%emt 0:00:15]} c6 {[%emt 0:01:20]} 14. Rad1 {[%emt 0:00:25]} Qb6 {[%emt 0:00:07]} 15. c4 {[%emt 0:00:50]} Nc7 {[%emt 0:02:42]} 16. c5 {[%emt 0:03:42]} Qxb2 {[%emt 0:03:52]} 17. Ba5 {[%emt 0:00:24]} Nb5 {[%emt 0:00:58]} 18. Ne2 {[%emt 0:03:18]} Qa2 {[%emt 0:01:39]} 19. Bxb5 {[%emt 0:01:30]} cxb5 {[%emt 0:00:04]} 20. Qxb7 {[%emt 0:00:11]} Nd5 {[%emt 0:01:02]} 21. Nc3 {[%emt 0:00:27]} Nxc3 {[%emt 0:00:09]} 22. Bxc3 {[%emt 0:00:02]} Qxa3 {[%emt 0:00:19]} 23. Ba1 {[%emt 0:00:01]} Bf6 {[%emt 0:00:05]} 24. Qxb5 {[%emt 0:00:07]} Rab8 {[%emt 0:00:04]} 25. Qc4 {[%emt 0:00:14]} Rfd8 {[%emt 0:00:17]} 26. h3 {[%emt 0:00:04]} Rb4 {[%emt 0:00:06]} 27. Qc2 {[%emt 0:00:13]} Qa5 {[%emt 0:00:14]} 28. Bc3 {[%emt 0:00:04]} Rc4 {[%emt 0:00:09]} 29. Bxa5 {[%emt 0:00:02]} Rxc2 {[%emt 0:00:02]} 30. Bxd8 {[%emt 0:00:01]} Bxd8 {[%emt 0:00:05]} 31. d5 {[%emt 0:00:09]} exd5 {[%emt 0:00:10]} 32. Re8# {[%emt 0:00:09]} 1-0

[Event "Polish University-ch Teams 2024"]
[Site "Lublin"]
[Date "2024.02.24"]
[Round "3.24"]
[White "Zarebska, Lena"]
[Black "Kaczmarska, Joanna"]
[Result "0-1"]
[ECO "B01"]
[WhiteElo "1871"]
[BlackElo "1870"]
[Annotator "NA RC"]
[PlyCount "60"]
[EventDate "2024.02.22"]
[EventType "team-tourn"]
[EventCountry "POL"]
[SourceTitle "playchess.com"]
[Source "ChessBase"]
[SourceQuality "1"]
[TimeControl "900+5"]

1. e4 {[%emt 0:00:01]} d5 {[%emt 0:00:01]} 2. exd5 {[%emt 0:00:01]} Qxd5 {[%emt 0:00:01]} 3. Nc3 {[%emt 0:00:01]} Qa5 {[%emt 0:00:01]} 4. d4 {[%emt 0:00:01]} Nf6 {[%emt 0:00:01]} 5. Nf3 {[%emt 0:00:01]} Bf5 {[%emt 0:00:02]} 6. Bd2 {[%emt 0:00:10]} c6 {[%emt 0:00:02]} 7. Ne5 {[%emt 0:00:02]} Nbd7 {[%emt 0:00:02]} 8. Nc4 {[%emt 0:00:02]} Qc7 {[%emt 0:00:02]} 9. Ne3 {[%emt 0:00:11]} Be6 {[%emt 0:00:16]} 10. a4 {[%emt 0:01:00]} g6 {[%emt 0:00:29]} 11. Be2 {[%emt 0:00:41]} Bg7 {[%emt 0:00:02]} 12. Bf3 {[%emt 0:00:01]} Nb6 {[%emt 0:05:14]} 13. a5 {[%emt 0:01:22]} Nbd5 {[%emt 0:02:06]} 14. a6 {[%emt 0:00:35]} b6 {[%emt 0:02:02]} 15. O-O {[%emt 0:00:03]} O-O {[%emt 0:00:05]} 16. Re1 {[%emt 0:00:47]} Rac8 {[%emt 0:00:58]} 17. Ra3 {[%emt 0:02:16]} Rfd8 {[%emt 0:00:32]} 18. Ne2 {[%emt 0:01:10]} Nxe3 {[%emt 0:02:39]} 19. fxe3 {[%emt 0:00:54]} c5 {[%emt 0:01:17]} 20. dxc5 {[%emt 0:03:17]} Qxc5 {[%emt 0:00:21]} 21. Bb7 {[%emt 0:01:10]} Rc7 {[%emt 0:00:27]} 22. Rc3 {[%emt 0:00:08]} Qe5 {[%emt 0:00:07]} 23. Nd4 {[%emt 0:02:09]} Ne4 {[%emt 0:00:01]} 24. Rxc7 {[%emt 0:00:04]} Nxd2 {[%emt 0:00:10]} 25. Qxd2 {[%emt 0:00:06]} Qxc7 {[%emt 0:00:01]} 26. Qf2 {[%emt 0:00:01]} Bd5 {[%emt 0:00:06]} 27. Nb5 {[%emt 0:00:48]} Qc5 {[%emt 0:00:08]} 28. Nxa7 {[%emt 0:00:13]} b5 {[%emt 0:00:05]} 29. Bxd5 {[%emt 0:00:09]} Rxd5 {[%emt 0:00:03]} 30. e4 {[%emt 0:00:01]} Bd4 {[%emt 0:00:02]} 0-1

[Event "Polish University-ch Teams 2024"]
[Site "Lublin"]
[Date "2024.02.24"]
[Round "4.1"]
[White "Pacan-Milej, Kosma"]
[Black "Janik, Igor"]
[Result "0-1"]
[ECO "C01"]
[WhiteElo "2438"]
[BlackElo "2499"]
[Annotator "TA"]
[PlyCount "56"]
[EventDate "2024.02.22"]
[EventType "team-tourn"]
[EventCountry "POL"]
[SourceTitle "playchess.com"]
[Source "ChessBase"]
[SourceQuality "1"]
[TimeControl "900+5"]

{[%evp 9,56,35,40,50,61,33,39,14,12,17,68,60,62,57,63,55,54,37,34,44,45,21,55,42,76,85,76,0,0,0,0,0,0,-130,-127,-140,-136,-268,-252,-301,-283,-508,-500,-497,-460,-455,-410,-523,-521]} 1. d4 {[%emt 0:00:01]} a6 {[%emt 0:00:00][%cal Ba7a6,Ba6a5][%mdl 32]} 2. e4 {[%emt 0:00:05]} e6 {[%emt 0:00:01]} 3. Bd3 {[%emt 0:00:24]} d5 {[%emt 0:00:01]} 4. e5 {[%emt 0:00:23]} Bd7 {[%emt 0:00:01]} 5. c3 {[%emt 0:00:28]} Bb5 {[%emt 0:00:04]} 6. Bc2 {[%emt 0:00:43]} a5 {[%emt 0:00:01]} 7. Ne2 {[%emt 0:00:37]} c5 {[%emt 0:00:03]} 8. a4 {[%emt 0:01:44] White is slightly better.} Bxe2 {[%emt 0:00:17]} 9. Qxe2 {[%emt 0:00:02]} Qb6 {[%emt 0:00:00]} (9... cxd4 $11 10. cxd4 Nc6) 10. dxc5 $14 {[%emt 0:00:22]} Bxc5 {[%emt 0:00:04]} 11. O-O {[%emt 0:00:04]} Nc6 {[%emt 0:00:07]} 12. Nd2 {[%emt 0:00:03]} Qc7 {[%emt 0:00:02]} 13. Nb3 {[%emt 0:00:24]} Bb6 {[%emt 0:00:06]} 14. Bf4 {[%emt 0:00:03]} Nge7 {[%emt 0:00:02]} 15. Bg3 {[%emt 0:00:52]} O-O {[%emt 0:00:11]} 16. Kh1 {[%emt 0:00:01]} Rfd8 {[%emt 0:00:12]} 17. f4 {[%emt 0:00:13]} d4 {[%emt 0:01:27]} 18. Rad1 {[%emt 0:01:20]} (18. Rf3 $16) 18... dxc3 $11 {[%emt 0:00:09]} 19. bxc3 {[%emt 0:00:02]} Rxd1 {[%emt 0:00:02]} 20. Rxd1 {[%emt 0:00:11]} Rd8 {[%emt 0:00:01]} 21. Bh4 {[%emt 0:01:25]} (21. Rxd8+ $11 {remains equal.} Qxd8 22. Bh4) 21... Rxd1+ $17 {[%emt 0:00:01]} 22. Qxd1 {[%emt 0:00:01]} Nd5 {[%emt 0:00:11]} 23. Qh5 {[%emt 0:01:03]} (23. Qd2 $17 {is a better defense.}) 23... h6 {[%emt 0:00:12][%cal Oc6b4] [#] Hoping for ...Ncb4!} 24. Qf3 {[%emt 0:04:28]} Ncb4 {[%emt 0:00:15]} 25. Be4 {[%emt 0:00:14]} (25. Bd8 Qxd8 26. cxb4 Nxb4 27. Be4) 25... Nxc3 $19 {[%emt 0:00:11]} 26. Bxb7 {[%emt 0:01:07]} Nxa4 {[%emt 0:00:01] Excellent horsemanship.} 27. Be4 {[%emt 0:00:22]} Nc5 {[%emt 0:00:02]} 28. Nxc5 {[%emt 0:00:35]} Qxc5 {[%emt 0:00:01] Weighted Error Value: White=0.50/Black=0.11 (very precise) .  Mistake:       	White=4     	Black=1      Inaccurate:     	White=1     	Black=2      OK:         	White=4     	Black=8      Best:        	---       	Black=3} 0-1

[Event "Polish University-ch Teams 2024"]
[Site "Lublin"]
[Date "2024.02.24"]
[Round "4.2"]
[White "Kowalski, Igor"]
[Black "Redzisz, Michal"]
[Result "1-0"]
[ECO "D11"]
[WhiteElo "2372"]
[BlackElo "2229"]
[Annotator "TA"]
[PlyCount "75"]
[EventDate "2024.02.22"]
[EventType "team-tourn"]
[EventCountry "POL"]
[SourceTitle "playchess.com"]
[Source "ChessBase"]
[SourceQuality "1"]
[TimeControl "900+5"]

{[%evp 9,74,10,18,13,36,29,40,39,37,45,51,56,54,55,64,26,38,28,29,30,30,27,141,134,123,136,205,180,247,254,250,206,240,241,247,256,551,539,716,485,827,493,908,911,922,896,925,925,925,925,1591,852,892,892,4094,947,5708,4818,29994,29986,29986,29981,29997,29998,29998,29999,29999]} 1. d4 {[%emt 0:00:01]} d5 {[%emt 0:00:01]} 2. c4 {[%emt 0:00:03]} c6 {[%emt 0:00:02]} 3. Nf3 {[%emt 0:00:02]} Nf6 {[%emt 0:00:01]} 4. g3 {[%emt 0:00:01]} Bf5 {[%emt 0:00:42]} 5. Nc3 {[%emt 0:00:01]} e6 {[%emt 0:00:01]} 6. Nh4 {[%emt 0:00:02]} Bg6 {[%emt 0:00:23]} 7. Nxg6 {[%emt 0:00:02]} hxg6 {[%emt 0:00:01]} 8. Qd3 {[%emt 0:00:03] White is slightly better.} Nbd7 {[%emt 0:00:24]} 9. Bg2 {[%emt 0:00:02]} Bd6 {[%emt 0:00:13]} 10. O-O {[%emt 0:00:18]} O-O {[%emt 0:00:06]} 11. Rd1 {[%emt 0:00:45]} Qc7 {[%emt 0:01:31]} 12. e4 {[%emt 0:00:16]} dxe4 {[%emt 0:00:02]} 13. Nxe4 {[%emt 0:00:02]} Nxe4 {[%emt 0:00:07]} 14. Qxe4 {[%emt 0:00:06]} Nf6 {[%emt 0:00:45]} 15. Qe2 {[%emt 0:00:33]} e5 {[%emt 0:00:17] Black is on the road to losing.} (15... Rfe8 $11) 16. c5 $16 {[%emt 0:00:03]} Be7 {[%emt 0:00:06]} 17. dxe5 {[%emt 0:00:02] White is more active.} Nd7 {[%emt 0:00:24]} (17... Nd5 $16 {was worth a try.} 18. Bxd5 cxd5 19. Rxd5 Bxc5) 18. e6 {[%emt 0:00:03]} Nxc5 {[%emt 0:00:01]} (18... Qe5 {might work better.} 19. exf7+ Rxf7) 19. exf7+ $18 {[%emt 0:00:58]} Rxf7 {[%emt 0:00:01]} 20. Bf4 {[%emt 0:00:25]} Qa5 {[%emt 0:02:33]} 21. Bh3 {[%emt 0:01:17] A strong pair of Bishops.} Kh7 {[%emt 0:00:38]} 22. Rac1 {[%emt 0:01:34] And now a3 would win.} Bf6 $2 {[%emt 0:01:22] [#]} (22... Rd8 23. Rxd8 Qxd8) 23. Qc4 {[%emt 0:00:07][%csl LRc5,LRf7]} Bxb2 {[%emt 0:01:53]} 24. Qxc5 {[%emt 0:00:22]} Qxa2 {[%emt 0:00:25]} (24... Qxc5 $142 25. Rxc5 Bf6) 25. Rc2 {[%emt 0:00:02]} Qb3 {[%emt 0:00:01]} (25... Qa4 $142 26. Be6 Ba3) 26. Rb1 {[%emt 0:00:28]} Rxf4 {[%emt 0:00:08]} 27. Rbxb2 {[%emt 0:00:37]} Qf3 {[%emt 0:00:42]} 28. gxf4 {[%emt 0:00:15] [#] White wants to mate with Rc3.} Qxh3 {[%emt 0:00:01]} 29. Rc3 {[%emt 0:00:15]} ({Not} 29. Rxb7 Qg4+ 30. Kh1 (30. Kf1 Qd1+ 31. Kg2 Qg4+ 32. Kf1 Qd1+ 33. Kg2 Qg4+ 34. Kf1 $11) 30... Qf3+ 31. Kg1 Qg4+ 32. Kf1 Qd1+ 33. Kg2 Qg4+ 34. Kf1 Qd1+ 35. Kg2 Qg4+ 36. Kf1 $11) 29... Qe6 {[%emt 0:00:48]} 30. Re3 {[%emt 0:00:30]} Qg4+ {[%emt 0:00:05]} 31. Rg3 {[%emt 0:00:01]} Qd1+ {[%emt 0:00:01]} 32. Kg2 {[%emt 0:00:01]} Rd8 {[%emt 0:00:06]} 33. Rxb7 {[%emt 0:00:09]} Rd5 {[%emt 0:00:10]} 34. Rh3+ {[%emt 0:00:03] White mates.} Rh5 {[%emt 0:00:03]} 35. Rxh5+ {[%emt 0:00:04]} gxh5 {[%emt 0:00:01]} 36. Qf5+ {[%emt 0:00:03]} Kh6 {[%emt 0:00:00]} 37. Qg5+ {[%emt 0:00:02]} Kh7 {[%emt 0:00:01]} 38. Qxg7# {[%emt 0:00:01] Weighted Error Value: White=0.46/Black=0.80.  Mistake:       	---       	Black=6      Inaccurate:     	White=2     	Black=1      OK:         	White=10    	Black=3      Best:        	White=1     	---} 1-0

[Event "Polish University-ch Teams 2024"]
[Site "Lublin"]
[Date "2024.02.24"]
[Round "4.3"]
[White "Galuszka, Tomasz"]
[Black "Molenda, Marcin"]
[Result "0-1"]
[ECO "B10"]
[WhiteElo "2181"]
[BlackElo "2377"]
[Annotator "TA"]
[PlyCount "84"]
[EventDate "2024.02.22"]
[EventType "team-tourn"]
[EventCountry "POL"]
[SourceTitle "playchess.com"]
[Source "ChessBase"]
[SourceQuality "1"]
[TimeControl "900+5"]

{[%evp 9,84,-10,-15,-62,-36,-33,-23,-51,11,-20,-11,-34,0,-3,0,0,0,0,0,-34,0,-6,0,-56,-32,-77,-42,-111,-97,-127,-27,-25,-22,-155,-126,-159,-89,-96,-95,-95,-104,-105,-29,-102,-114,-116,-89,-179,-56,-77,-35,-56,-55,-48,-56,-57,0,0,0,0,0,0,0,-24,-28,-22,-39,-254,-75,-102,-103,-271,-285,-29983,-29984,-29988,-29989]} 1. e4 {[%emt 0:00:02]} c6 {[%emt 0:00:00]} 2. Nf3 {[%emt 0:00:02]} d5 {[%emt 0:00:02]} 3. d3 {[%emt 0:00:01]} g6 {[%emt 0:00:17]} 4. Qe2 {[%emt 0:00:03]} Bg7 {[%emt 0:00:07]} 5. h3 {[%emt 0:00:08]} Nf6 {[%emt 0:01:35]} 6. g4 {[%emt 0:01:16]} (6. e5 $11) 6... dxe4 {[%emt 0:00:15]} 7. dxe4 {[%emt 0:00:03]} O-O {[%emt 0:00:08]} 8. Bg2 {[%emt 0:00:11] Black has an edge.} Qc7 {[%emt 0:01:58]} (8... h5 $15) 9. O-O {[%emt 0:00:12]} e5 {[%emt 0:00:57]} 10. b3 {[%emt 0:01:02]} Nbd7 {[%emt 0:00:09][%cal Bb8d7,Bd7f8,Bf8e6,Be6f4][%mdl 32]} 11. Ba3 {[%emt 0:00:40][%cal Of1d1]} Re8 {[%emt 0:00:01]} 12. Rd1 {[%emt 0:00:28]} Bf8 {[%emt 0:00:01] Prevents Bd6.} 13. Qe3 {[%emt 0:01:27]} Kg7 {[%emt 0:00:42]} 14. Nfd2 {[%emt 0:00:10]} Bxa3 {[%emt 0:00:23]} 15. Nxa3 {[%emt 0:00:01]} Nf8 {[%emt 0:00:05]} 16. Nf1 {[%emt 0:00:19]} ({White should try} 16. Nac4 $11) 16... Ne6 {[%emt 0:00:22]} 17. Ng3 {[%emt 0:00:02]} Nf4 {[%emt 0:00:38]} 18. Bf1 {[%emt 0:00:03]} (18. Nc4 $15) 18... Be6 {[%emt 0:00:18]} 19. Ne2 {[%emt 0:01:32]} g5 {[%emt 0:00:45] Black has more active pieces.} (19... Qe7 $17 20. Nb1 h5) 20. Ng3 $11 {[%emt 0:00:22]} h5 {[%emt 0:01:30]} 21. Nf5+ {[%emt 0:00:22]} (21. gxh5 $11 Kh6 (21... Bxh3 22. Bxh3 Nxh3+ 23. Kf1 $15) 22. Nc4) 21... Bxf5 $17 {[%emt 0:00:03]} 22. gxf5 {[%emt 0:00:05]} b5 {[%emt 0:00:39] Prevents Nc4.} (22... Rg8 $142 {White must now prevent ...Kh7.} 23. Nc4 c5) 23. c4 {[%emt 0:02:43]} b4 {[%emt 0:00:10]} 24. Nc2 {[%emt 0:00:02]} c5 {[%emt 0:00:01]} 25. Ne1 {[%emt 0:00:01]} Qc6 {[%emt 0:00:34]} (25... Red8 $17 {Strongly threatening ...Rd4.} 26. Rd5 N6xd5 27. cxd5 Qd6) 26. Rd5 {[%emt 0:00:02]} N6xd5 {[%emt 0:00:06]} (26... N4xd5 27. cxd5 (27. Qxg5+ Kh7 $11) 27... Qb6 28. Qxg5+ Kh7 29. Qh4 $11) 27. cxd5 {[%emt 0:00:12]} Qd6 {[%emt 0:00:15]} 28. Nf3 {[%emt 0:01:39]} (28. Rc1 $17) 28... f6 {[%emt 0:00:13]} (28... g4 $19 29. Ng5 a5) 29. Nd2 $15 {[%emt 0:00:10]} Red8 {[%emt 0:00:50]} 30. Rc1 {[%emt 0:00:15][%cal Od2c4]} Rac8 {[%emt 0:00:14]} 31. Nc4 {[%emt 0:00:08]} Qc7 {[%emt 0:00:03]} 32. Kh2 {[%emt 0:00:08]} a5 {[%emt 0:00:09]} (32... Rd7 $15) 33. Nb2 $11 {[%emt 0:00:01]} Kh6 {[%emt 0:00:54]} 34. Na4 {[%emt 0:00:22]} Qd6 {[%emt 0:00:23] Wards off Ba6} 35. Bb5 {[%emt 0:00:32]} Rc7 {[%emt 0:00:12][%cal Of4d5]} 36. Bc6 {[%emt 0:00:24]} Rxc6 {[%emt 0:00:08]} 37. dxc6 {[%emt 0:00:01]} Qxc6 {[%emt 0:00:06]} 38. Rxc5 $2 {[%emt 0:00:24] [#]} (38. Nxc5 $15 Rd4 39. h4) 38... Qd6 $2 {[%emt 0:00:58]} (38... Qa6 $19 {and Black stays clearly on top. ( -> ...Qf1)} 39. Rc4 Rd3) 39. Nb2 $17 {[%emt 0:00:01]} Qd2 {[%emt 0:00:18]} 40. Nc4 {[%emt 0:00:04]} (40. Rc6 $17 Qxe3 (40... Qxb2 41. Rxf6+ Kg7 42. Qb6 $11) 41. fxe3 Rd2+ 42. Kh1 Rxb2 (42... Nxh3 43. Rxf6+ Kh7 44. Nc4 $15) 43. exf4 gxf4 44. Rxf6+ Kh7 (44... Kg5 $2 45. Rg6+ Kh4 46. f6 $18) 45. Rf7+ (45. Re6 $2 Rxa2 46. Re7+ Kh6 $19) 45... Kg8 (45... Kh6 46. Rf6+ Kh7 47. Rf7+ Kg8 48. Ra7 $17) 46. Ra7 (46. Re7 $2 Rxa2 47. Rb7 h4 $19)) 40... Qd1 $19 {[%emt 0:00:23]} ({Inferior is} 40... Qxa2 41. Rxa5 (41. Nxa5 {is a self mate.} Rd2 42. Kg3 Qb1) (41. Rc6 Rd3 $11) 41... Qc2 42. Ra6 $11) 41. Qg3 $2 {[%emt 0:02:16] [#]} (41. Rc6 $19 Rd3 (41... Kg7 $2 42. Qa7+ Rd7 43. Rc7 $18) 42. Nb2 Rxe3 43. Nxd1 Rxh3+ 44. Kg1) 41... h4 {[%emt 0:00:33]} 42. Qg1 {[%emt 0:00:05]} Qf3 {[%emt 0:00:08][%csl LRe4,LRh3] Weighted Error Value: White=0.45/Black=0.27 (precise) .  Loses game:     	White=2     	---        Missed win:     	---       	Black=1      Mistake:       	White=6     	Black=6      Inaccurate:     	White=4     	Black=5      OK:         	White=9     	Black=7      Best:        	White=1     	Black=3} 0-1

[Event "Polish University-ch Teams 2024"]
[Site "Lublin"]
[Date "2024.02.24"]
[Round "4.4"]
[White "Chylewski, Patryk"]
[Black "Skurniak, Szymon"]
[Result "1-0"]
[ECO "B07"]
[WhiteElo "2285"]
[BlackElo "2096"]
[Annotator "RC"]
[PlyCount "97"]
[EventDate "2024.02.22"]
[EventType "team-tourn"]
[EventCountry "POL"]
[SourceTitle "playchess.com"]
[Source "ChessBase"]
[SourceQuality "1"]
[TimeControl "900+5"]

1. e4 {[%emt 0:00:01]} d6 {[%emt 0:00:03]} 2. d4 {[%emt 0:00:03]} Nf6 {[%emt 0:00:02]} 3. Nc3 {[%emt 0:00:04]} e5 {[%emt 0:00:01]} 4. Nge2 {[%emt 0:00:17]} c6 {[%emt 0:00:10]} 5. a4 {[%emt 0:00:12]} a5 {[%emt 0:00:10]} 6. h3 {[%emt 0:00:04]} Be7 {[%emt 0:00:27]} 7. Be3 {[%emt 0:01:04]} Nbd7 {[%emt 0:00:21]} 8. g4 {[%emt 0:00:13]} d5 {[%emt 0:00:20]} 9. exd5 {[%emt 0:00:41]} Nxd5 {[%emt 0:00:36]} 10. Nxd5 {[%emt 0:00:06]} cxd5 {[%emt 0:00:02]} 11. dxe5 {[%emt 0:00:21]} Nxe5 {[%emt 0:00:04]} 12. Bg2 {[%emt 0:00:06]} Nc4 {[%emt 0:05:34]} 13. Qxd5 {[%emt 0:01:35]} Qxd5 {[%emt 0:00:35]} 14. Bf3 {[%emt 0:11:28]} Qe4 15. Bxe4 {[%emt 0:00:00]} Nxe3 {[%emt 0:00:33]} 16. Bd5 {[%emt 0:00:00]} Bd6 17. fxe3 Bc5 {[%emt 0:00:40]} 18. e4 {[%emt 0:00:00]} h5 {[%emt 0:00:09]} 19. g5 {[%emt 0:00:00]} h4 {[%emt 0:00:09]} 20. Nf4 {[%emt 0:00:00]} Be3 {[%emt 0:01:56]} 21. Rf1 {[%emt 0:00:00]} f6 {[%emt 0:01:56]} 22. gxf6 {[%emt 0:00:00]} gxf6 {[%emt 0:00:02]} 23. Ng6 {[%emt 0:00:00]} Rh6 {[%emt 0:01:26]} 24. Rxf6 {[%emt 0:00:00]} Ra6 {[%emt 0:00:01]} 25. Bf7+ {[%emt 0:00:00]} Kd8 {[%emt 0:00:08]} 26. Rd1+ {[%emt 0:00:00]} Kc7 {[%emt 0:00:01]} 27. Rxa6 {[%emt 0:00:00]} bxa6 {[%emt 0:00:01]} 28. Rd3 {[%emt 0:00:00]} Bc5 {[%emt 0:00:05]} 29. Rf3 {[%emt 0:00:00]} Bb7 {[%emt 0:00:09]} 30. Rf4 {[%emt 0:00:00]} Be3 {[%emt 0:00:34]} 31. Rg4 {[%emt 0:00:00]} Bc8 {[%emt 0:00:10]} 32. Rxh4 {[%emt 0:00:00]} Bxh3 {[%emt 0:00:04]} 33. Rxh6 {[%emt 0:00:00]} Bxh6 {[%emt 0:00:01]} 34. Bc4 {[%emt 0:00:00]} Bg7 {[%emt 0:00:06]} 35. b3 {[%emt 0:00:00]} Kb6 {[%emt 0:00:55]} 36. Nf4 {[%emt 0:00:00]} Bg4 {[%emt 0:00:03]} 37. Kd2 {[%emt 0:00:00]} Bh6 {[%emt 0:00:07]} 38. Ke3 {[%emt 0:00:00]} Bd1 {[%emt 0:00:01]} 39. Bd3 {[%emt 0:00:01]} Kc5 {[%emt 0:00:01]} 40. e5 {[%emt 0:00:18]} Kb4 {[%emt 0:00:31]} 41. Ke4 {[%emt 0:00:03]} Kc3 {[%emt 0:00:01]} 42. Nd5+ {[%emt 0:00:27]} Kb2 {[%emt 0:00:03]} 43. e6 {[%emt 0:00:03]} Bg5 {[%emt 0:00:04]} 44. e7 {[%emt 0:00:19]} Bxe7 {[%emt 0:00:03]} 45. Nxe7 {[%emt 0:00:01]} Bxc2 {[%emt 0:00:01]} 46. Bxc2 {[%emt 0:00:10]} Kxc2 {[%emt 0:00:01]} 47. Nd5 {[%emt 0:00:02]} Kxb3 {[%emt 0:00:02]} 48. Nb6 {[%emt 0:00:01]} Kb4 {[%emt 0:00:01]} 49. Kd5 {[%emt 0:00:02]} 1-0

[Event "Polish University-ch Teams 2024"]
[Site "Lublin"]
[Date "2024.02.24"]
[Round "4.5"]
[White "Makhynia, Kostiantyn"]
[Black "Antolak, Julia"]
[Result "0-1"]
[ECO "A43"]
[WhiteElo "1968"]
[BlackElo "2309"]
[Annotator "RC"]
[PlyCount "87"]
[EventDate "2024.02.22"]
[EventType "team-tourn"]
[EventCountry "POL"]
[SourceTitle "playchess.com"]
[Source "ChessBase"]
[SourceQuality "1"]
[TimeControl "900+5"]

1. d4 {[%emt 0:00:01]} Nf6 {[%emt 0:00:02]} 2. Nf3 {[%emt 0:00:01]} c5 {[%emt 0:00:01]} 3. d5 {[%emt 0:00:02]} b5 {[%emt 0:00:02]} 4. Bg5 {[%emt 0:00:01]} Qb6 {[%emt 0:00:02]} 5. a4 {[%emt 0:00:02]} b4 {[%emt 0:00:08]} 6. a5 {[%emt 0:00:01]} Qc7 {[%emt 0:00:19]} 7. c4 {[%emt 0:00:17]} d6 {[%emt 0:00:35]} 8. Nbd2 {[%emt 0:00:37]} Nbd7 {[%emt 0:00:06]} 9. e4 {[%emt 0:00:12]} g6 {[%emt 0:00:01]} 10. Bd3 {[%emt 0:01:01]} Bg7 {[%emt 0:00:03]} 11. Qb3 {[%emt 0:00:15]} O-O {[%emt 0:00:18]} 12. O-O {[%emt 0:00:04]} e5 {[%emt 0:00:48]} 13. dxe6 {[%emt 0:02:09]} fxe6 {[%emt 0:00:02]} 14. e5 {[%emt 0:00:10]} dxe5 {[%emt 0:00:12]} 15. Bxf6 {[%emt 0:01:41]} Nxf6 {[%emt 0:00:34]} 16. Be4 {[%emt 0:00:17]} Nxe4 {[%emt 0:00:29]} 17. Nxe4 {[%emt 0:00:01]} Bb7 {[%emt 0:00:17]} 18. Rfe1 {[%emt 0:01:10]} Rad8 {[%emt 0:01:06]} 19. Nfg5 {[%emt 0:01:14]} Bc8 {[%emt 0:02:19]} 20. Qg3 {[%emt 0:03:03]} Rf5 {[%emt 0:02:00]} 21. h4 {[%emt 0:00:23]} h6 {[%emt 0:01:18]} 22. Nf3 {[%emt 0:00:08]} Kh7 {[%emt 0:00:02]} 23. Nfd2 {[%emt 0:01:45]} Bb7 {[%emt 0:00:16]} 24. Nb3 {[%emt 0:00:18]} Bxe4 {[%emt 0:00:59]} 25. Rxe4 {[%emt 0:00:02]} Rf4 {[%emt 0:00:05]} 26. Qe3 {[%emt 0:00:26]} Rxe4 {[%emt 0:02:04]} 27. Qxe4 {[%emt 0:00:01]} Qd6 {[%emt 0:00:01]} 28. h5 {[%emt 0:00:21]} Qd3 {[%emt 0:00:22]} 29. hxg6+ {[%emt 0:00:03]} Kg8 {[%emt 0:00:01]} 30. Qxd3 {[%emt 0:00:25]} Rxd3 {[%emt 0:00:01]} 31. Nxc5 {[%emt 0:00:01]} Rd4 {[%emt 0:00:53]} 32. b3 {[%emt 0:00:22]} Rg4 {[%emt 0:00:40]} 33. Rd1 {[%emt 0:00:23]} Rxg6 {[%emt 0:00:04]} 34. Rd8+ {[%emt 0:00:02]} Kh7 {[%emt 0:00:37]} 35. Rd7 {[%emt 0:00:07]} e4 {[%emt 0:00:30]} 36. Rxa7 {[%emt 0:00:09]} Rf6 {[%emt 0:00:02]} 37. a6 {[%emt 0:00:14]} Kg6 {[%emt 0:00:01]} 38. Nxe4 {[%emt 0:00:04]} Rf4 {[%emt 0:00:01]} 39. f3 {[%emt 0:00:04]} Bd4+ {[%emt 0:00:01]} 40. Kf1 {[%emt 0:00:37]} Bxa7 {[%emt 0:00:02]} 41. Ke2 {[%emt 0:00:03]} Rf5 {[%emt 0:00:17]} 42. Kd3 {[%emt 0:00:07]} Ra5 {[%emt 0:00:02]} 43. Nd6 {[%emt 0:00:07]} Rxa6 {[%emt 0:00:10]} 44. Ne4 {[%emt 0:00:14]} 0-1